[Event "Cracovia Festival-A 2023"]
[Site "Krakow"]
[Date "2024.01.03"]
[Round "8.13"]
[White "Steindl, Johannes"]
[Black "Szczurek, Krzysztof"]
[Result "0-1"]
[ECO "C65"]
[WhiteElo "2334"]
[BlackElo "2175"]
[Annotator "RC"]
[PlyCount "68"]
[EventDate "2023.12.24"]
[EventType "swiss"]
[EventCountry "POL"]
[SourceTitle "playchess.com"]
[Source "ChessBase"]
[SourceQuality "1"]
[TimeControl "40/5400+30:1800+30"]

1. e4 {[%emt 0:00:03]} e5 {[%emt 0:00:06]} 2. Nf3 {[%emt 0:00:46]} Nc6 {[%emt 0:00:04]} 3. Bb5 {[%emt 0:00:24]} Nf6 {[%emt 0:00:06]} 4. d3 {[%emt 0:01:11]} Bc5 {[%emt 0:00:13]} 5. c3 {[%emt 0:00:47]} d6 {[%emt 0:01:21]} 6. Bg5 {[%emt 0:05:29]} h6 {[%emt 0:02:33]} 7. Bh4 {[%emt 0:00:04]} a6 {[%emt 0:02:59]} 8. Ba4 {[%emt 0:01:14]} b5 {[%emt 0:00:45]} 9. Bc2 {[%emt 0:00:24]} g5 {[%emt 0:06:03]} 10. Bg3 {[%emt 0:00:04]} g4 {[%emt 0:00:48]} 11. Bh4 {[%emt 0:05:08]} Rg8 {[%emt 0:08:44]} 12. Nfd2 {[%emt 0:04:46]} d5 {[%emt 0:19:12]} 13. exd5 {[%emt 0:05:37]} Qxd5 {[%emt 0:00:05]} 14. Bxf6 {[%emt 0:00:23]} Qxg2 {[%emt 0:00:04]} 15. Rf1 {[%emt 0:00:07]} Qxh2 {[%emt 0:00:43]} 16. d4 {[%emt 0:11:31]} exd4 {[%emt 0:05:59]} 17. Ne4 {[%emt 0:06:03]} g3 {[%emt 0:09:58]} 18. Nxg3 {[%emt 0:07:47]} Bg4 {[%emt 0:08:13]} 19. Qd3 {[%emt 0:04:25]} Kf8 {[%emt 0:21:32]} 20. Kd2 {[%emt 0:25:04]} Rg6 {[%emt 0:05:00]} 21. Bxd4 {[%emt 0:05:02]} Bxd4 {[%emt 0:02:16]} 22. cxd4 {[%emt 0:00:09]} Rd8 {[%emt 0:00:08]} 23. Qa3+ {[%emt 0:07:27]} b4 {[%emt 0:00:12]} 24. Qxa6 {[%emt 0:00:38]} Rgd6 {[%emt 0:01:19]} 25. Qb7 {[%emt 0:04:23]} Nxd4 {[%emt 0:01:00]} 26. Be4 {[%emt 0:00:40]} Nf5+ {[%emt 0:01:34]} 27. Kc2 {[%emt 0:01:52]} Nxg3 {[%emt 0:00:08]} 28. Qxb4 {[%emt 0:00:06]} Nxf1 {[%emt 0:00:09]} 29. Nc3 {[%emt 0:00:07]} Qxf2+ {[%emt 0:00:07]} 30. Kb3 {[%emt 0:00:08]} Nd2+ {[%emt 0:00:11]} 31. Ka3 {[%emt 0:00:17]} c5 {[%emt 0:00:14]} 32. Qb7 {[%emt 0:00:31]} Nxe4 {[%emt 0:00:14]} 33. Nxe4 {[%emt 0:00:13]} Qf3+ {[%emt 0:00:43]} 34. b3 {[%emt 0:00:10]} R6d7 {[%emt 0:00:20]} 0-1

[Event "Cracovia Festival-A 2023"]
[Site "Krakow"]
[Date "2024.01.03"]
[Round "8.14"]
[White "Aakash Sharadchandra, Dalvi"]
[Black "Sernecki, Franciszek"]
[Result "1-0"]
[ECO "E20"]
[WhiteElo "2130"]
[BlackElo "2325"]
[Annotator "RC"]
[PlyCount "91"]
[EventDate "2023.12.24"]
[EventType "swiss"]
[EventCountry "POL"]
[SourceTitle "playchess.com"]
[Source "ChessBase"]
[SourceQuality "1"]
[TimeControl "40/5400+30:1800+30"]

1. d4 {[%emt 0:00:03]} Nf6 {[%emt 0:00:36]} 2. c4 {[%emt 0:00:12]} e6 {[%emt 0:00:05]} 3. Nc3 {[%emt 0:00:09]} Bb4 {[%emt 0:00:24]} 4. Bd2 {[%emt 0:00:07]} c5 {[%emt 0:02:16]} 5. dxc5 {[%emt 0:00:14]} Bxc5 {[%emt 0:05:14]} 6. Nf3 {[%emt 0:00:17]} O-O {[%emt 0:01:17]} 7. g3 {[%emt 0:00:07]} b6 {[%emt 0:03:09]} 8. Bg2 {[%emt 0:00:27]} Bb7 {[%emt 0:00:11]} 9. O-O {[%emt 0:01:18]} Ne4 {[%emt 0:14:51]} 10. Rc1 {[%emt 0:06:43]} Qe7 {[%emt 0:14:53]} 11. a3 {[%emt 0:09:30]} a5 {[%emt 0:06:40]} 12. Na4 {[%emt 0:23:10]} Na6 {[%emt 0:07:43]} 13. Nxc5 {[%emt 0:11:06]} Naxc5 {[%emt 0:02:27]} 14. b3 {[%emt 0:05:35]} Rfd8 {[%emt 0:07:41]} 15. Be3 {[%emt 0:01:52]} d5 {[%emt 0:05:33]} 16. Qc2 {[%emt 0:00:52]} dxc4 {[%emt 0:03:11]} 17. bxc4 {[%emt 0:00:10]} Nd6 {[%emt 0:05:58]} 18. Qb1 {[%emt 0:04:07]} Qc7 {[%emt 0:06:50]} 19. Ng5 {[%emt 0:02:34]} g6 {[%emt 0:01:02]} 20. Bxb7 {[%emt 0:01:02]} Ndxb7 {[%emt 0:03:00]} 21. Ne4 {[%emt 0:06:29]} Nxe4 {[%emt 0:01:30]} 22. Qxe4 {[%emt 0:00:06]} Nd6 {[%emt 0:02:58]} 23. Qe5 {[%emt 0:02:53]} Ne8 {[%emt 0:02:16]} 24. Qxc7 {[%emt 0:00:13]} Nxc7 {[%emt 0:00:01]} 25. Bxb6 {[%emt 0:00:09]} Rdc8 {[%emt 0:00:28]} 26. Rfd1 {[%emt 0:00:55]} Ra6 {[%emt 0:00:18]} 27. Rb1 {[%emt 0:06:51]} e5 {[%emt 0:02:32]} 28. a4 {[%emt 0:04:53]} Kg7 {[%emt 0:00:47]} 29. c5 {[%emt 0:04:40]} Ne6 {[%emt 0:00:30]} 30. e3 {[%emt 0:00:21]} Rc6 {[%emt 0:00:29]} 31. Rd5 {[%emt 0:04:05]} f6 {[%emt 0:00:30]} 32. Rd7+ {[%emt 0:01:10]} Kh6 {[%emt 0:00:17]} 33. Rd6 {[%emt 0:01:35]} Rxd6 {[%emt 0:00:24]} 34. cxd6 {[%emt 0:00:02]} Nf8 {[%emt 0:00:26]} 35. Rb5 {[%emt 0:00:37]} Nd7 {[%emt 0:00:51]} 36. Bc7 {[%emt 0:00:05]} e4 {[%emt 0:00:30]} 37. Rxa5 {[%emt 0:00:30]} Rc6 {[%emt 0:00:02]} 38. Kg2 {[%emt 0:00:23]} g5 {[%emt 0:00:29]} 39. Ra8 {[%emt 0:02:25]} g4 {[%emt 0:01:06]} 40. Re8 {[%emt 0:00:00]} Nc5 {[%emt 0:00:00]} 41. Re7 {[%emt 0:09:22]} Nd3 {[%emt 0:02:10]} 42. d7 {[%emt 0:05:50]} Ne1+ {[%emt 0:02:24]} 43. Kf1 {[%emt 0:00:17]} Nf3 {[%emt 0:00:11]} 44. Ba5 {[%emt 0:00:54]} Rc1+ {[%emt 0:00:12]} 45. Ke2 {[%emt 0:00:05]} Rc2+ {[%emt 0:00:19]} 46. Kd1 {[%emt 0:00:07]} 1-0

[Event "Cracovia Festival-A 2023"]
[Site "Krakow"]
[Date "2024.01.03"]
[Round "8.15"]
[White "Kozak, Antoni"]
[Black "Keinanen, Anastasia"]
[Result "1-0"]
[ECO "E98"]
[WhiteElo "2442"]
[BlackElo "2227"]
[Annotator "RC"]
[PlyCount "81"]
[EventDate "2023.12.24"]
[EventType "swiss"]
[EventCountry "POL"]
[SourceTitle "playchess.com"]
[Source "ChessBase"]
[SourceQuality "1"]
[TimeControl "40/5400+30:1800+30"]

1. Nf3 {[%emt 0:00:02]} Nf6 {[%emt 0:00:48]} 2. c4 {[%emt 0:00:16]} g6 {[%emt 0:00:52]} 3. Nc3 {[%emt 0:00:11]} Bg7 {[%emt 0:00:10]} 4. e4 {[%emt 0:00:17]} d6 {[%emt 0:00:20]} 5. d4 {[%emt 0:00:07]} O-O {[%emt 0:00:14]} 6. Be2 {[%emt 0:01:15]} e5 {[%emt 0:00:53]} 7. O-O {[%emt 0:00:15]} Nc6 {[%emt 0:01:23]} 8. d5 {[%emt 0:00:20]} Ne7 {[%emt 0:00:33]} 9. Ne1 {[%emt 0:00:05]} Nd7 {[%emt 0:01:57]} 10. Nd3 {[%emt 0:03:20]} f5 {[%emt 0:01:34]} 11. f3 {[%emt 0:00:31]} f4 {[%emt 0:02:16]} 12. b4 {[%emt 0:01:45]} a5 {[%emt 0:04:07]} 13. Ba3 {[%emt 0:03:24]} c6 {[%emt 0:28:22]} 14. dxc6 {[%emt 0:10:46]} bxc6 {[%emt 0:13:47]} 15. b5 {[%emt 0:00:07]} c5 {[%emt 0:00:40]} 16. Nb2 {[%emt 0:06:33]} Nf6 {[%emt 0:09:56]} 17. Nba4 {[%emt 0:04:45]} Be6 {[%emt 0:04:57]} 18. Qd2 {[%emt 0:02:32]} Ra7 {[%emt 0:00:05]} 19. Rab1 {[%emt 0:02:37]} Rd7 {[%emt 0:03:38]} 20. Nd5 {[%emt 0:00:23]} g5 {[%emt 0:04:26]} 21. Ndb6 {[%emt 0:15:36]} Rb7 {[%emt 0:04:56]} 22. Rfd1 {[%emt 0:00:05]} Rxb6 {[%emt 0:03:36]} 23. Nxb6 {[%emt 0:01:41]} Qxb6 {[%emt 0:00:12]} 24. Qxd6 {[%emt 0:00:04]} Qxd6 {[%emt 0:00:35]} 25. Rxd6 {[%emt 0:00:03]} Kf7 {[%emt 0:00:31]} 26. Bxc5 {[%emt 0:00:14]} Nd7 {[%emt 0:06:42]} 27. Bf2 {[%emt 0:00:21]} Rc8 {[%emt 0:02:35]} 28. Ra6 {[%emt 0:01:33]} Bf8 {[%emt 0:01:01]} 29. Rxa5 {[%emt 0:00:56]} Rb8 {[%emt 0:02:02]} 30. Rc1 {[%emt 0:06:00]} Nc8 {[%emt 0:00:35]} 31. c5 {[%emt 0:00:20]} Be7 {[%emt 0:00:27]} 32. Ra6 {[%emt 0:01:18]} Rb7 {[%emt 0:01:20]} 33. c6 {[%emt 0:01:20]} Rc7 {[%emt 0:00:03]} 34. b6 {[%emt 0:00:12]} Ndxb6 {[%emt 0:00:19]} 35. Bxb6 {[%emt 0:00:18]} Nxb6 {[%emt 0:00:06]} 36. Rxb6 {[%emt 0:00:03]} Bxa2 {[%emt 0:00:56]} 37. Rb7 {[%emt 0:00:17]} Rc8 {[%emt 0:00:41]} 38. Ba6 {[%emt 0:01:27]} Be6 {[%emt 0:00:49]} 39. Rxe7+ {[%emt 0:00:20]} Kxe7 {[%emt 0:00:03]} 40. Bxc8 {[%emt 0:00:00]} Bxc8 {[%emt 0:00:00]} 41. Rd1 {[%emt 0:00:10]} 1-0

[Event "Cracovia Festival-A 2023"]
[Site "Krakow"]
[Date "2024.01.03"]
[Round "8.16"]
[White "Klepek, Witold"]
[Black "Karolczuk, Iwo"]
[Result "1-0"]
[ECO "B90"]
[WhiteElo "2252"]
[BlackElo "2365"]
[Annotator "RC"]
[PlyCount "61"]
[EventDate "2023.12.24"]
[EventType "swiss"]
[EventCountry "POL"]
[SourceTitle "playchess.com"]
[Source "ChessBase"]
[SourceQuality "1"]
[TimeControl "40/5400+30:1800+30"]

1. e4 {[%emt 0:04:15]} c5 {[%emt 0:00:08]} 2. Nf3 {[%emt 0:00:06]} d6 {[%emt 0:00:06]} 3. d4 {[%emt 0:00:02]} cxd4 {[%emt 0:00:07]} 4. Nxd4 {[%emt 0:00:03]} Nf6 {[%emt 0:00:07]} 5. Nc3 {[%emt 0:00:02]} a6 {[%emt 0:00:10]} 6. Rg1 {[%emt 0:00:02]} h5 {[%emt 0:04:01]} 7. Bg5 {[%emt 0:00:06]} Nbd7 {[%emt 0:02:04]} 8. Qd2 {[%emt 0:00:26]} Nc5 {[%emt 0:07:27]} 9. Bd3 {[%emt 0:16:47]} e6 {[%emt 0:13:40]} 10. O-O-O {[%emt 0:02:25]} b5 {[%emt 0:08:51]} 11. Rge1 {[%emt 0:06:51]} Bb7 {[%emt 0:11:01]} 12. Nd5 {[%emt 0:12:52]} Nxd3+ {[%emt 0:09:27]} 13. Qxd3 {[%emt 0:00:22]} Rc8 {[%emt 0:06:43]} 14. Qh3 {[%emt 0:14:19]} Be7 {[%emt 0:06:30]} 15. Nxe7 {[%emt 0:11:01]} Qxe7 {[%emt 0:00:53]} 16. e5 {[%emt 0:04:26]} dxe5 {[%emt 0:02:13]} 17. Rxe5 {[%emt 0:00:21]} O-O {[%emt 0:04:45]} 18. Qg3 {[%emt 0:06:31]} Rfd8 {[%emt 0:02:25]} 19. Rd2 {[%emt 0:01:27]} Rxd4 {[%emt 0:12:13]} 20. Rxd4 {[%emt 0:00:25]} Qc7 {[%emt 0:00:16]} 21. Re2 {[%emt 0:00:43]} Qxg3 {[%emt 0:00:47]} 22. fxg3 Nd5 {[%emt 0:00:28]} 23. Bd2 {[%emt 0:01:27]} Kf8 {[%emt 0:02:40]} 24. g4 {[%emt 0:00:28]} hxg4 {[%emt 0:00:49]} 25. Rxg4 {[%emt 0:00:04]} g6 {[%emt 0:00:25]} 26. Rh4 {[%emt 0:00:56]} Kg7 {[%emt 0:01:50]} 27. b3 {[%emt 0:00:42]} Kf6 {[%emt 0:02:37]} 28. Rf2+ {[%emt 0:00:28]} Kg7 {[%emt 0:00:11]} 29. Re2 {[%emt 0:03:35]} Kf6 {[%emt 0:00:07]} 30. Rh7 {[%emt 0:01:15]} Ke7 {[%emt 0:01:40]} 31. Rf2 {[%emt 0:00:16]} 1-0

[Event "Cracovia Festival-A 2023"]
[Site "Krakow"]
[Date "2024.01.03"]
[Round "8.17"]
[White "Akhvlediani, Irakli"]
[Black "Gierulski, Kamil"]
[Result "1-0"]
[ECO "A13"]
[WhiteElo "2359"]
[BlackElo "2223"]
[Annotator "RC"]
[PlyCount "75"]
[EventDate "2023.12.24"]
[EventType "swiss"]
[EventCountry "POL"]
[SourceTitle "playchess.com"]
[Source "ChessBase"]
[SourceQuality "1"]
[TimeControl "40/5400+30:1800+30"]

1. c4 {[%emt 0:00:04]} e6 {[%emt 0:00:03]} 2. Nc3 {[%emt 0:00:08]} Bb4 {[%emt 0:00:05]} 3. Qb3 {[%emt 0:00:11]} Nc6 {[%emt 0:00:14]} 4. Nf3 {[%emt 0:00:48]} Nf6 {[%emt 0:00:27]} 5. a3 {[%emt 0:00:36]} Bxc3 {[%emt 0:00:09]} 6. Qxc3 {[%emt 0:00:04]} d6 {[%emt 0:00:43]} 7. b4 {[%emt 0:02:33]} e5 {[%emt 0:00:44]} 8. Bb2 {[%emt 0:01:20]} O-O {[%emt 0:02:51]} 9. d3 {[%emt 0:08:30]} Bg4 {[%emt 0:01:30]} 10. e3 {[%emt 0:02:24]} Bxf3 {[%emt 0:05:39]} 11. gxf3 {[%emt 0:00:10]} a5 {[%emt 0:00:03]} 12. b5 {[%emt 0:02:53]} Nb8 {[%emt 0:00:24]} 13. f4 {[%emt 0:15:30]} Nbd7 {[%emt 0:03:27]} 14. fxe5 {[%emt 0:21:13]} dxe5 {[%emt 0:00:11]} 15. d4 {[%emt 0:05:33]} e4 {[%emt 0:09:09]} 16. Rg1 {[%emt 0:03:04]} a4 {[%emt 0:11:23]} 17. Bh3 {[%emt 0:08:46]} Re8 {[%emt 0:03:37]} 18. O-O-O {[%emt 0:01:46]} Nf8 {[%emt 0:12:15]} 19. d5 {[%emt 0:05:47]} Ng6 {[%emt 0:00:02]} 20. c5 {[%emt 0:00:26]} b6 {[%emt 0:02:50]} 21. d6 {[%emt 0:05:35]} cxd6 {[%emt 0:14:11]} 22. Rxd6 {[%emt 0:00:29]} Qe7 {[%emt 0:02:53]} 23. Rxb6 {[%emt 0:00:15]} Rad8 {[%emt 0:00:17]} 24. Rxf6 {[%emt 0:01:50]} gxf6 {[%emt 0:00:30]} 25. Qxf6 {[%emt 0:00:55]} Qxf6 {[%emt 0:01:10]} 26. Bxf6 {[%emt 0:00:03]} Rd5 {[%emt 0:02:44]} 27. Bd4 {[%emt 0:00:17]} Kf8 {[%emt 0:02:04]} 28. c6 {[%emt 0:02:45]} Rxb5 {[%emt 0:00:55]} 29. Bd7 {[%emt 0:01:42]} Ra8 {[%emt 0:06:01]} 30. c7 {[%emt 0:07:02]} Rb7 {[%emt 0:00:05]} 31. Bc5+ {[%emt 0:00:07]} Ne7 {[%emt 0:01:44]} 32. Bd6 {[%emt 0:01:14]} Rb6 {[%emt 0:00:57]} 33. Bc5 {[%emt 0:02:22]} Rb7 {[%emt 0:00:01]} 34. Bd6 {[%emt 0:00:21]} Rb6 {[%emt 0:00:01]} 35. Rd1 {[%emt 0:00:42]} f6 {[%emt 0:07:59]} 36. Rd2 {[%emt 0:00:03]} Rxd6 {[%emt 0:04:01]} 37. Rxd6 {[%emt 0:00:03]} Kg7 {[%emt 0:01:18]} 38. Re6 {[%emt 0:00:27]} 1-0

[Event "Cracovia Festival-A 2023"]
[Site "Krakow"]
[Date "2024.01.03"]
[Round "8.18"]
[White "Vasynda, Oleksandr"]
[Black "Kucza, Karol"]
[Result "0-1"]
[ECO "D02"]
[WhiteElo "2153"]
[BlackElo "2343"]
[Annotator "RC"]
[PlyCount "120"]
[EventDate "2023.12.24"]
[EventType "swiss"]
[EventCountry "POL"]
[SourceTitle "playchess.com"]
[Source "ChessBase"]
[SourceQuality "1"]
[TimeControl "40/5400+30:1800+30"]

1. d4 {[%emt 0:00:03]} d5 {[%emt 0:05:10]} 2. Nf3 {[%emt 0:00:15]} Nf6 {[%emt 0:00:06]} 3. c4 {[%emt 0:00:12]} e6 {[%emt 0:00:05]} 4. e3 {[%emt 0:00:08]} b6 {[%emt 0:00:04]} 5. Bd3 {[%emt 0:00:37]} Bd6 {[%emt 0:00:13]} 6. O-O {[%emt 0:00:41]} O-O {[%emt 0:00:10]} 7. b3 {[%emt 0:00:05]} Bb7 {[%emt 0:00:10]} 8. Bb2 {[%emt 0:00:12]} Nbd7 {[%emt 0:00:26]} 9. Nc3 {[%emt 0:01:47]} a6 {[%emt 0:00:19]} 10. Qc2 {[%emt 0:04:10]} dxc4 {[%emt 0:01:03]} 11. bxc4 {[%emt 0:00:26]} c5 {[%emt 0:00:13]} 12. d5 {[%emt 0:05:07]} exd5 {[%emt 0:00:06]} 13. Nxd5 {[%emt 0:03:14]} Bxd5 {[%emt 0:03:47]} 14. cxd5 {[%emt 0:00:48]} b5 {[%emt 0:00:14]} 15. Rad1 {[%emt 0:04:02]} Re8 {[%emt 0:01:15]} 16. Bf5 {[%emt 0:11:14]} g6 {[%emt 0:08:27]} 17. Bxd7 {[%emt 0:02:23]} Nxd7 {[%emt 0:00:07]} 18. e4 {[%emt 0:01:06]} Qc7 {[%emt 0:03:54]} 19. Rfe1 {[%emt 0:01:36]} f6 {[%emt 0:03:22]} 20. g3 {[%emt 0:01:50]} Rac8 {[%emt 0:01:41]} 21. Nh4 {[%emt 0:04:13]} c4 {[%emt 0:12:01]} 22. Bd4 {[%emt 0:04:44]} Ne5 {[%emt 0:04:12]} 23. Re2 {[%emt 0:10:17]} Bc5 {[%emt 0:01:49]} 24. Bxe5 {[%emt 0:02:06]} fxe5 {[%emt 0:00:18]} 25. Nf3 {[%emt 0:01:39]} Qe7 {[%emt 0:24:18]} 26. Kg2 {[%emt 0:05:54]} Bd6 {[%emt 0:00:36]} 27. Rf1 {[%emt 0:05:01]} c3 {[%emt 0:02:54]} 28. Ne1 {[%emt 0:02:08]} Rc4 {[%emt 0:00:35]} 29. Nd3 {[%emt 0:01:52]} a5 {[%emt 0:00:12]} 30. Kh1 {[%emt 0:02:02]} a4 {[%emt 0:00:20]} 31. f4 {[%emt 0:00:58]} Qd7 {[%emt 0:00:17]} 32. f5 {[%emt 0:02:42]} b4 {[%emt 0:00:18]} 33. fxg6 {[%emt 0:01:32]} hxg6 {[%emt 0:00:06]} 34. Ref2 {[%emt 0:01:20]} Kg7 {[%emt 0:07:08]} 35. Rf6 {[%emt 0:00:56]} Rc7 {[%emt 0:05:19]} 36. Qc1 {[%emt 0:06:01]} Qg4 {[%emt 0:03:18]} 37. Nf2 {[%emt 0:03:14]} Qe2 {[%emt 0:00:11]} 38. Rxd6 {[%emt 0:00:23]} c2 {[%emt 0:01:38]} 39. Rb6 {[%emt 0:02:22]} Qxf1+ {[%emt 0:00:31]} 40. Qxf1 {[%emt 0:00:00]} c1=Q {[%emt 0:00:00]} 41. Qxc1 {[%emt 0:00:23]} Rxc1+ {[%emt 0:00:13]} 42. Kg2 {[%emt 0:00:03]} Rc2 {[%emt 0:00:16]} 43. Rb7+ {[%emt 0:00:14]} Kg8 {[%emt 0:02:19]} 44. Kg1 {[%emt 0:00:07]} b3 {[%emt 0:08:41]} 45. Ng4 {[%emt 0:05:33]} Rf8 {[%emt 0:01:01]} 46. axb3 {[%emt 0:00:21]} a3 {[%emt 0:00:06]} 47. Ra7 {[%emt 0:00:13]} a2 {[%emt 0:00:07]} 48. Nxe5 {[%emt 0:00:16]} Rc1+ {[%emt 0:01:07]} 49. Kg2 {[%emt 0:00:02]} a1=Q {[%emt 0:00:10]} 50. Rxa1 {[%emt 0:00:03]} Rxa1 {[%emt 0:00:07]} 51. Nxg6 {[%emt 0:00:03]} Ra2+ {[%emt 0:00:30]} 52. Kh3 {[%emt 0:00:04]} Re8 {[%emt 0:00:36]} 53. Kg4 {[%emt 0:01:42]} Rxe4+ {[%emt 0:00:15]} 54. Kf5 {[%emt 0:00:05]} Re3 {[%emt 0:03:20]} 55. d6 {[%emt 0:00:53]} Rd2 {[%emt 0:00:28]} 56. Ne7+ {[%emt 0:00:28]} Kf7 {[%emt 0:00:15]} 57. Kf4 {[%emt 0:00:19]} Rxb3 {[%emt 0:00:54]} 58. Nf5 {[%emt 0:00:08]} Kf6 {[%emt 0:00:59]} 59. g4 {[%emt 0:00:18]} Rb4+ {[%emt 0:00:35]} 60. Kg3 {[%emt 0:00:09]} Rd5 {[%emt 0:00:37]} 0-1

[Event "Cracovia Festival-A 2023"]
[Site "Krakow"]
[Date "2024.01.03"]
[Round "8.19"]
[White "Lukasiewicz, Krzysztof"]
[Black "Grochol, Kamil"]
[Result "1/2-1/2"]
[ECO "A45"]
[WhiteElo "2290"]
[BlackElo "2101"]
[Annotator "RC"]
[PlyCount "55"]
[EventDate "2023.12.24"]
[EventType "swiss"]
[EventCountry "POL"]
[SourceTitle "playchess.com"]
[Source "ChessBase"]
[SourceQuality "1"]
[TimeControl "40/5400+30:1800+30"]

1. d4 {[%emt 0:05:31]} Nf6 {[%emt 0:01:29]} 2. Bf4 {[%emt 0:00:03]} d5 {[%emt 0:00:07]} 3. e3 {[%emt 0:00:04]} c5 {[%emt 0:00:08]} 4. Nf3 {[%emt 0:00:04]} Nc6 {[%emt 0:00:08]} 5. Nbd2 {[%emt 0:00:05]} e6 {[%emt 0:00:21]} 6. c3 {[%emt 0:00:04]} Bd6 {[%emt 0:00:11]} 7. Bg3 {[%emt 0:00:03]} O-O {[%emt 0:00:32]} 8. Bd3 {[%emt 0:00:03]} Qe7 {[%emt 0:00:09]} 9. Ne5 {[%emt 0:00:05]} Nd7 {[%emt 0:00:07]} 10. Nxd7 {[%emt 0:00:03]} Qxd7 {[%emt 0:00:06]} 11. dxc5 {[%emt 0:00:06]} Bxc5 {[%emt 0:00:09]} 12. O-O {[%emt 0:00:34]} Rd8 {[%emt 0:04:25]} 13. Nf3 {[%emt 0:10:57]} Bd6 {[%emt 0:00:18]} 14. Qe2 {[%emt 0:02:34]} Bxg3 {[%emt 0:07:15]} 15. hxg3 {[%emt 0:00:39]} e5 {[%emt 0:04:10]} 16. e4 {[%emt 0:00:10]} d4 {[%emt 0:07:14]} 17. Rfd1 {[%emt 0:23:38]} Qe7 {[%emt 0:12:55]} 18. cxd4 {[%emt 0:08:52]} Nxd4 {[%emt 0:01:22]} 19. Nxd4 {[%emt 0:00:05]} Rxd4 {[%emt 0:00:24]} 20. Bc4 {[%emt 0:00:03]} Rxd1+ {[%emt 0:09:28]} 21. Rxd1 {[%emt 0:00:22]} Be6 {[%emt 0:01:33]} 22. Bxe6 {[%emt 0:02:44]} Qxe6 {[%emt 0:00:30]} 23. Qb5 {[%emt 0:04:59]} b6 {[%emt 0:06:04]} 24. Qd7 {[%emt 0:09:14]} Qf6 {[%emt 0:13:31]} 25. Qc7 {[%emt 0:05:16]} g6 {[%emt 0:14:05]} 26. b3 {[%emt 0:02:00]} Kg7 {[%emt 0:02:10]} 27. Rd6 {[%emt 0:05:56]} Rc8 {[%emt 0:01:08]} 28. Qxc8 {[%emt 0:01:35]} 1/2-1/2

[Event "Cracovia Festival-A 2023"]
[Site "Krakow"]
[Date "2024.01.03"]
[Round "8.20"]
[White "Ernst, Robert"]
[Black "Eke, Salih"]
[Result "1/2-1/2"]
[ECO "A05"]
[WhiteElo "2271"]
[BlackElo "2217"]
[Annotator "RC"]
[PlyCount "47"]
[EventDate "2023.12.24"]
[EventType "swiss"]
[EventCountry "POL"]
[SourceTitle "playchess.com"]
[Source "ChessBase"]
[SourceQuality "1"]
[TimeControl "40/5400+30:1800+30"]

1. Nf3 {[%emt 0:00:03]} Nf6 {[%emt 0:11:14]} 2. c4 {[%emt 0:00:05]} e6 {[%emt 0:02:45]} 3. e3 {[%emt 0:00:12]} d5 {[%emt 0:00:31]} 4. Nc3 {[%emt 0:00:10]} Bd6 {[%emt 0:01:10]} 5. b3 {[%emt 0:00:21]} O-O {[%emt 0:00:12]} 6. Bb2 {[%emt 0:00:37]} c6 {[%emt 0:02:31]} 7. Qc2 {[%emt 0:01:11]} e5 {[%emt 0:03:47]} 8. cxd5 {[%emt 0:00:08]} cxd5 {[%emt 0:00:25]} 9. Nb5 {[%emt 0:00:10]} Nc6 {[%emt 0:00:21]} 10. Nxd6 {[%emt 0:00:07]} Qxd6 {[%emt 0:00:05]} 11. d4 {[%emt 0:00:09]} e4 {[%emt 0:08:46]} 12. Ne5 {[%emt 0:10:12]} Bd7 {[%emt 0:00:25]} 13. Be2 {[%emt 0:24:04]} Rac8 {[%emt 0:14:56]} 14. Qd2 {[%emt 0:04:02]} Nb4 {[%emt 0:02:55]} 15. Nxd7 {[%emt 0:11:37]} Nxd7 {[%emt 0:02:09]} 16. Bc3 {[%emt 0:00:15]} Nc6 {[%emt 0:02:32]} 17. b4 {[%emt 0:07:49]} Nb6 {[%emt 0:04:53]} 18. b5 {[%emt 0:00:40]} Ne7 {[%emt 0:00:01]} 19. Bb4 {[%emt 0:00:13]} Qe6 {[%emt 0:01:03]} 20. Bc5 {[%emt 0:03:02]} Nc4 {[%emt 0:02:09]} 21. Qb4 {[%emt 0:06:13]} Rfe8 {[%emt 0:00:52]} 22. Bxc4 {[%emt 0:09:30]} dxc4 {[%emt 0:00:17]} 23. Bxe7 {[%emt 0:00:09]} Rxe7 {[%emt 0:03:27]} 24. Rc1 {[%emt 0:00:06]} 1/2-1/2